bitfinex/quotes_ETHUSD_20260102
["timestamp","ask_amount","ask_price","bid_price","bid_amount"]
[1767366830376,7.64485054,3073.2,3072.1,3.58060851]
[1767366830674,7.64485054,3073.2,3072.2,8.35920527]
[1767366831075,7.64485054,3073.2,3072.2,11.61413441]
[1767366831775,7.64485054,3073.2,3072.2,11.61420168]
[1767366831979,7.67566742,3074.0,3072.3,8.35920527]
[1767366832143,7.67366742,3073.8,3072.5,8.35920527]
[1767366832479,7.67366742,3073.6,3072.6,0.851]
[1767366832645,7.67366742,3073.6,3072.6,9.21020527]
[1767366833068,7.67566742,3074.0,3072.6,9.21020527]
[1767366833376,7.67566742,3074.0,3072.7,4.10546675]
[1767366833562,7.67566742,3074.0,3072.8,1.2464672]
[1767366833987,0.002,3073.4,3072.8,2.0974672]
[1767366834155,0.002,3073.4,3072.8,0.851]
[1767366834548,0.002,3073.4,3072.8,9.21020527]
[1767366834765,7.67366742,3073.8,3072.8,9.21020527]
[1767366834977,7.67566742,3074.0,3072.8,9.21020527]
[1767366835158,7.67566742,3074.0,3073.0,8.35920527]
[1767366835367,7.67566742,3074.6,3073.3,8.35920527]
[1767366835697,7.67566742,3074.6,3073.4,9.21020527]
[1767366836189,0.002,3074.8,3073.1,1.48677151]
[1767366836190,0.002,3074.8,3073.6,8.238185]
[1767366836561,8.04225976,3074.8,3073.6,8.238185]
[1767366836881,8.04225976,3074.8,3073.7,9.9981035]
[1767366837177,8.04025976,3075.7,3074.0,8.238185]
[1767366837380,8.04025976,3075.7,3073.9,9.75958878]
[1767366837381,8.04025976,3075.7,3074.2,8.238185]
[1767366837581,0.002,3075.9,3074.3,18.68408]
[1767366837781,8.04225976,3075.9,3074.4,8.238185]
[1767366837989,8.04225976,3075.9,3074.2,5.56736135]
[1767366837990,8.04225976,3075.9,3074.6,8.238185]
[1767366838288,8.04225976,3075.9,3074.8,8.238185]
[1767366839277,8.04225976,3075.9,3075.0,8.238185]
[1767366840089,0.04063983,3075.8,3074.8,3.25222499]
[1767366840384,8.04025976,3075.7,3074.8,3.25223843]
[1767366840682,8.04025976,3075.7,3074.8,9.38722734]
[1767366840979,8.04025976,3075.7,3074.4,8.238185]
[1767366841181,8.04025976,3075.7,3074.6,3.25238751]
[1767366841387,0.04064247,3075.6,3074.2,3.25284701]
[1767366841592,0.04064247,3075.6,3073.3,5.56736135]
[1767366841593,8.04025976,3075.5,3073.7,0.9089185]
[1767366841790,8.04025976,3075.3,3074.1,3.25298071]
[1767366841975,8.04025976,3075.1,3073.9,3.25312449]
[1767366842163,8.89225976,3075.1,3073.7,0.9089185]
[1767366842559,8.04025976,3074.9,3073.2,8.238185]
[1767366842791,8.04025976,3074.9,3073.5,3.25355233]
[1767366842980,8.04025976,3074.7,3073.3,3.25373979]
[1767366843198,8.04025976,3075.0,3073.6,3.25351379]
[1767366843405,8.04025976,3075.0,3073.7,8.238185]
[1767366843598,8.04025976,3075.0,3073.8,9.71270626]
[1767366843805,8.04025976,3075.0,3073.9,0.851]
[1767366844005,8.04025976,3075.4,3074.0,8.238185]
[1767366844879,8.04025976,3075.2,3073.8,1.47452126]
[1767366845092,8.04025976,3075.0,3073.8,2.32552126]
[1767366845294,8.04025976,3074.8,3073.3,6.50766276]
[1767366845607,8.04025976,3074.8,3073.4,0.851]
[1767366845801,8.04025976,3074.8,3073.4,9.089185]
[1767366846210,8.04025976,3074.8,3073.5,9.089185]
[1767366846507,8.04025976,3074.6,3073.6,0.851]
[1767366846806,8.84428574,3074.6,3073.7,0.851]
[1767366847010,8.04025976,3074.4,3073.1,8.238185]
[1767366847307,8.04025976,3074.4,3072.2,3.25495019]
[1767366847308,8.04025976,3074.4,3072.4,8.238185]
[1767366847501,8.04025976,3074.4,3072.7,3.25443984]
[1767366847699,8.04025976,3074.2,3072.7,3.99043952]
[1767366847888,8.04025976,3074.0,3072.1,0.851]
[1767366848092,8.04025976,3074.0,3071.9,0.851]
[1767366848295,8.04025976,3073.8,3071.6,8.238185]
[1767366848599,8.04025976,3073.6,3071.6,0.8239185]
[1767366848798,8.04025976,3073.4,3071.5,0.852]
[1767366849114,8.04025976,3073.4,3071.5,0.001]
[1767366849282,8.04025976,3073.2,3071.5,0.001]
[1767366850106,8.04025976,3072.7,3071.9,0.001]
[1767366850412,5.56736135,3072.8,3070.9,3.25735905]
[1767366850413,8.04025976,3072.5,3070.9,3.25735905]
[1767366850589,8.04025976,3072.5,3071.0,3.25626422]
[1767366850800,8.04025976,3072.5,3070.9,8.239185]
[1767366851000,8.04025976,3072.5,3071.3,3.25593275]
[1767366851315,8.04025976,3072.5,3071.1,8.238185]
[1767366851526,8.04025976,3073.0,3071.5,8.238185]
[1767366851831,8.89225976,3073.0,3071.5,8.238185]
[1767366852338,8.04025976,3073.0,3071.5,8.238185]
[1767366853524,8.04025976,3073.0,3071.6,7.36226448]
[1767366853725,8.04025976,3073.0,3071.6,15.60044948]
[1767366853927,8.04025976,3073.0,3071.8,8.238185]
[1767366854514,8.89225976,3073.4,3071.8,8.238185]
[1767366854695,8.04025976,3073.4,3071.8,8.238185]
[1767366855537,8.04025976,3073.4,3071.7,1.56004495]
[1767366855538,8.04025976,3073.4,3072.0,8.238185]
[1767366855837,8.89225976,3073.8,3072.0,8.238185]
[1767366856034,8.89225976,3073.8,3072.2,8.238185]
[1767366856797,5.31438619,3074.6,3072.4,8.238185]
[1767366856798,8.04025976,3074.6,3072.4,8.238185]
[1767366857026,0.002,3074.8,3072.6,8.238185]
[1767366857027,8.04025976,3074.4,3072.6,8.238185]
[1767366857231,8.04025976,3074.2,3072.7,9.1471035]
[1767366857435,0.88922598,3074.3,3072.4,3.25478453]
[1767366857436,8.04025976,3074.0,3072.4,3.25478453]
[1767366857636,0.89266495,3073.9,3072.5,8.238185]
[1767366857800,8.04025976,3074.5,3073.4,8.238185]
[1767366858000,8.04025976,3074.7,3072.9,8.238185]
[1767366858220,8.04025976,3074.7,3072.8,5.31438619]
[1767366858221,8.84448574,3074.7,3073.1,8.238185]
[1767366859554,8.84448574,3074.7,3073.1,11.49219417]
[1767366859555,8.04025976,3074.5,3073.1,11.49219417]
[1767366859726,8.04025976,3074.3,3073.2,4.10493391]
[1767366859932,8.04025976,3074.3,3073.3,0.851]
[1767366860464,8.04025976,3074.3,3073.0,4.6093881]
[1767366860666,8.04025976,3074.3,3073.4,0.851]
[1767366860870,8.04025976,3074.3,3072.9,8.238185]
[1767366861070,8.04025976,3074.1,3073.0,0.851]
[1767366861361,8.04025976,3074.1,3073.1,3.25403328]
[1767366861562,8.04025976,3074.1,3072.9,8.238185]
[1767366861733,8.84428574,3074.1,3072.9,3.67226783]
[1767366861947,8.84428574,3074.1,3073.0,0.851]
[1767366862443,8.84428574,3074.1,3072.9,4.10516969]
[1767366862638,8.84428574,3074.1,3072.9,0.851]
[1767366862845,8.84428574,3074.1,3072.9,4.10521093]
[1767366863030,8.84428574,3074.1,3073.0,1.23433959]
[1767366863235,8.84428574,3074.1,3072.8,8.238185]
[1767366863433,8.84428574,3074.1,3072.9,0.851]
[1767366864138,8.04025976,3074.1,3073.0,8.238185]
[1767366864629,8.04025976,3074.6,3073.0,8.238185]
[1767366864831,8.04025976,3074.6,3073.1,8.238185]
[1767366865130,0.002,3074.8,3073.1,8.238185]
[1767366865326,8.04225976,3074.8,3073.1,8.238185]
[1767366865557,8.04225976,3074.8,3073.3,8.238185]
[1767366865764,8.04225976,3074.8,3073.2,1.35525712]
[1767366865975,8.04025976,3074.6,3073.3,0.851]
[1767366866177,8.04025976,3074.6,3073.4,8.06034623]
[1767366866860,0.002,3074.1,3073.4,8.06034623]
[1767366867865,7.9878132,3074.8,3073.3,0.851]
[1767366868069,7.9878132,3074.8,3073.5,8.06034623]
[1767366868258,7.9878132,3074.8,3073.6,1.13140537]
[1767366868644,7.9878132,3074.8,3073.6,8.06034623]
[1767366869157,7.9858132,3074.6,3073.2,8.06034623]
[1767366869352,7.9858132,3074.6,3073.2,11.31424151]
[1767366869650,7.9858132,3074.4,3073.1,8.06034623]
[1767366869856,7.9858132,3074.2,3073.1,8.06034623]
[1767366870389,7.9858132,3074.2,3073.0,0.852]
[1767366870899,7.9858132,3074.2,3073.0,0.001]
[1767366871446,7.9858132,3074.0,3073.0,0.001]
[1767366871646,8.8378132,3074.0,3073.0,0.001]
[1767366871880,8.8378132,3074.0,3072.3,8.06034623]
[1767366871881,7.9858132,3073.8,3072.3,8.06034623]
[1767366872088,7.9858132,3073.6,3072.3,8.06034623]
[1767366873046,7.9858132,3073.6,3072.3,5.31438619]
[1767366873248,7.9858132,3073.4,3072.0,8.06034623]
[1767366873470,7.9858132,3073.4,3072.1,8.06034623]
[1767366873675,7.9858132,3073.4,3071.9,0.851]
[1767366873676,7.9858132,3073.4,3072.4,8.06034623]
[1767366874275,7.9858132,3073.8,3072.5,8.06034623]
[1767366875845,7.9858132,3073.8,3072.7,8.06034623]
[1767366876451,7.9858132,3073.6,3072.5,0.851]
[1767366876748,7.9858132,3074.0,3072.6,8.06034623]
[1767366876949,7.9858132,3074.0,3072.8,8.06034623]
[1767366877153,7.9858132,3074.6,3073.6,13.37473242]
[1767366877348,7.9858132,3074.6,3073.7,8.06034623]
[1767366879159,7.9858132,3074.6,3073.4,11.31407019]
[1767366879383,7.9858132,3074.6,3073.5,8.06034623]
[1767366879583,7.9858132,3074.6,3073.6,1.21650702]
[1767366880466,7.9858132,3074.4,3073.3,8.91134623]
[1767366880668,7.9858132,3074.4,3073.4,8.06034623]
[1767366881960,7.9858132,3074.4,3073.3,0.851]
[1767366882182,7.9858132,3074.4,3073.4,8.06034623]
[1767366882384,7.9858132,3074.4,3073.6,8.06034623]
[1767366882681,7.9878132,3074.8,3073.6,8.06034623]
[1767366883399,0.002,3074.8,3073.8,8.06034623]
[1767366883690,7.9878132,3075.4,3073.8,8.06034623]
[1767366883906,7.9858132,3075.2,3073.8,8.91134623]
[1767366884061,7.9858132,3075.0,3073.9,0.89113462]
[1767366884503,0.80264596,3075.1,3073.5,1.45680046]
[1767366884671,7.9858132,3074.8,3073.7,11.31371242]
[1767366884896,7.9858132,3074.8,3073.8,8.06034623]
[1767366885107,7.9858132,3075.3,3074.0,8.06034623]
[1767366885256,0.002,3075.4,3074.3,8.06034623]
[1767366885456,0.002,3075.4,3074.5,8.06034623]
[1767366885661,7.9878132,3075.4,3074.6,0.89113462]
[1767366886114,7.9878132,3075.4,3074.7,3.25234982]
[1767366886464,0.002,3075.4,3074.8,8.06034623]
[1767366887193,0.002,3075.7,3074.8,8.06034623]
[1767366887994,7.9858132,3075.6,3074.8,8.06034623]
[1767366888420,7.9858132,3075.6,3074.8,11.31257037]
[1767366888625,7.9858132,3075.6,3074.8,12.85817334]
[1767366888912,7.9858132,3075.6,3074.8,11.31253478]
[1767366889627,0.002,3075.7,3074.9,8.06034623]
[1767366889942,0.002,3075.9,3075.0,8.91134623]
[1767366890086,0.002,3075.9,3075.1,0.851]
[1767366890290,0.002,3075.9,3075.1,4.10283439]
[1767366890524,0.002,3075.9,3075.1,12.89866723]
[1767366890727,0.002,3075.9,3075.1,8.79583284]
[1767366890914,7.9878132,3075.9,3075.0,3.25194337]
[1767366891113,7.9878132,3075.9,3074.8,8.06034623]
[1767366891590,7.9878132,3075.9,3074.7,4.10326707]
[1767366891926,7.9878132,3075.9,3074.9,3.25208909]
[1767366892126,7.9878132,3075.9,3074.8,3.25221089]
[1767366892286,8.87199452,3075.9,3074.7,3.25234982]
[1767366892488,7.9878132,3075.9,3074.7,17.81739569]
[1767366892690,7.9878132,3075.9,3074.9,8.06034623]
[1767366892691,0.002,3075.9,3074.9,8.06034623]
[1767366894533,0.002,3075.9,3075.1,8.06034623]
[1767366894688,0.002,3075.9,3075.1,8.91134623]
[1767366896414,0.002,3075.9,3075.2,3.25182101]
[1767366896586,0.002,3075.9,3075.2,5.11854424]
[1767366896791,0.002,3075.9,3075.2,1.86672323]
[1767366897126,0.002,3075.9,3074.7,7.94159619]
[1767366897127,8.26215234,3075.9,3074.7,7.94159619]
[1767366897499,8.26215234,3075.9,3074.5,0.851]
[1767366897711,8.26215234,3075.9,3074.2,7.94159619]
[1767366897712,8.26015234,3075.7,3074.2,7.94159619]
[1767366898018,8.26015234,3075.5,3073.9,7.94159619]
[1767366898217,8.26015234,3075.3,3074.1,3.25298205]
[1767366898386,8.26015234,3075.1,3073.9,11.19477966]
[1767366898719,9.11115234,3075.1,3074.0,7.94159619]
[1767366899522,8.26015234,3075.1,3074.0,7.94159619]
[1767366900292,0.851,3075.0,3073.2,7.94159619]
[1767366900621,8.26015234,3074.9,3073.4,3.25371454]
[1767366900820,8.26015234,3074.9,3073.5,7.94159619]
[1767366900821,9.17126757,3074.9,3073.5,7.94159619]
[1767366901023,5.31438619,3074.6,3072.9,7.94159619]
[1767366901235,5.31438619,3074.6,3072.8,0.001]
[1767366901236,8.26015234,3074.5,3072.8,0.001]
[1767366901520,8.26015234,3074.3,3072.8,0.001]
[1767366901717,8.26015234,3074.3,3073.0,7.94159619]
[1767366902121,0.91111523,3074.9,3073.4,5.31438619]
[1767366902292,0.91111523,3074.9,3073.1,3.25398531]
[1767366902293,8.26015234,3074.8,3073.5,11.19520487]
[1767366902492,9.11215234,3074.8,3073.6,7.94159619]
[1767366902720,9.11215234,3074.8,3073.2,7.94159619]
[1767366902939,9.11215234,3074.8,3072.8,0.001]
[1767366903231,8.26015234,3074.5,3073.3,11.19535147]
[1767366903476,8.26015234,3074.5,3073.4,1.11953515]
[1767366903767,8.26015234,3074.5,3073.2,3.25387035]
[1767366903977,8.26015234,3074.1,3072.8,0.001]
[1767366904191,8.26015234,3073.9,3072.8,0.001]
[1767366904347,8.26015234,3073.7,3072.8,0.001]
[1767366904542,8.26015234,3073.7,3072.3,3.25486485]
[1767366904984,8.26015234,3073.7,3072.2,7.94159619]
[1767366905280,8.26015234,3073.6,3072.0,0.001]
[1767366905647,8.26015234,3073.2,3072.0,0.001]
[1767366905973,5.31438619,3073.3,3071.8,0.001]
[1767366905974,8.26015234,3073.0,3071.8,0.001]
[1767366906171,8.26015234,3072.8,3071.5,0.001]
[1767366906374,8.26015234,3072.8,3070.9,7.94259619]
[1767366906550,8.26015234,3072.6,3071.1,3.25615255]
[1767366906743,8.26015234,3072.4,3071.0,4.05051319]
[1767366906942,8.26015234,3072.4,3071.1,11.19773777]
[1767366907167,8.26015234,3072.4,3071.1,7.94159619]
[1767366907474,8.26015234,3072.4,3071.1,11.19775254]
[1767366907695,0.852,3072.3,3072.1,0.001]
[1767366907896,0.852,3072.3,3071.2,9.14079741]
[1767366908196,8.26015234,3072.4,3071.2,9.14079741]
[1767366908366,3.25324094,3073.9,3071.2,9.14079741]
[1767366908367,8.26015234,3074.3,3071.7,5.31438619]
[1767366908568,0.82601523,3074.2,3072.3,10.925508]
[1767366908773,8.26015234,3074.5,3072.7,7.94159619]
[1767366909284,8.26015234,3074.3,3072.8,0.851]
[1767366909481,8.26015234,3074.1,3072.8,0.851]
[1767366909685,8.26015234,3073.9,3072.7,7.94159619]
[1767366909887,9.09023394,3073.9,3072.7,0.87925962]
[1767366910186,8.26015234,3073.7,3071.9,7.94159619]
[1767366910366,8.26015234,3073.5,3072.1,7.94159619]
[1767366910569,0.852,3073.6,3072.1,7.94159619]
[1767366911093,8.26015234,3074.0,3072.1,7.94159619]
[1767366911264,8.26015234,3074.0,3072.4,7.94159619]
[1767366911461,9.11215234,3073.9,3072.6,7.94159619]
[1767366911672,8.26015234,3073.7,3072.5,1.40664272]
[1767366911895,0.852,3073.6,3072.5,7.94159619]
[1767366912077,8.26015234,3073.5,3072.1,7.94159619]
[1767366912596,8.26015234,3073.3,3072.1,11.19665312]
[1767366912987,0.852,3073.3,3072.2,7.94159619]
[1767366913299,0.852,3073.5,3072.2,7.94159619]
[1767366913495,0.852,3073.5,3072.3,1.77068579]
[1767366913496,8.26015234,3073.4,3072.3,1.77068579]
[1767366913705,8.26015234,3073.4,3072.2,7.94159619]
[1767366914000,0.852,3073.3,3072.2,7.94159619]
[1767366914386,0.852,3073.6,3072.2,7.94159619]
[1767366914701,0.852,3073.6,3072.4,7.94159619]
[1767366914907,8.26015234,3074.5,3072.6,7.94159619]
[1767366915078,9.11684867,3074.4,3072.8,7.94159619]
[1767366915286,9.11684867,3074.4,3072.7,2.17659824]
[1767366915287,8.26015234,3075.4,3073.0,7.94159619]
[1767366915478,8.26015234,3074.9,3073.0,7.94159619]
[1767366915675,8.26015234,3074.7,3073.0,7.94159619]
[1767366916202,0.852,3074.6,3073.0,7.94159619]
[1767366916591,8.30080935,3074.5,3073.1,3.25404314]
[1767366916799,8.26015234,3074.3,3073.2,1.11956393]
[1767366916974,8.26015234,3074.3,3073.2,9.06116012]
[1767366917175,0.852,3074.5,3073.2,9.06116012]
[1767366917372,9.11215234,3074.5,3073.2,9.06116012]
[1767366917577,8.26015234,3074.3,3073.2,9.06116012]
[1767366917789,8.26015234,3074.3,3073.3,1.23152033]
[1767366918004,8.26015234,3074.3,3073.1,6.50808628]
[1767366918203,8.26015234,3074.7,3073.2,7.94159619]
[1767366918401,9.11215234,3074.6,3073.2,7.94159619]
[1767366918610,9.11215234,3074.6,3073.3,14.44925895]
[1767366918807,5.59743047,3074.5,3072.7,1.32559824]
[1767366918981,8.26015234,3074.4,3072.6,3.25449476]
[1767366919181,8.26015234,3074.2,3072.5,3.25465881]
[1767366919393,8.26015234,3074.0,3072.8,3.25435928]
[1767366919589,8.26015234,3074.0,3072.9,3.25424941]
[1767366919795,0.852,3074.0,3073.2,3.25384024]
[1767366919995,0.852,3074.3,3073.3,7.94159619]
[1767366920209,0.852,3074.3,3073.2,3.25384024]
[1767366920210,9.11215234,3074.3,3073.2,3.25384024]
[1767366920510,9.11215234,3074.3,3073.2,6.5077775]
[1767366920691,9.11215234,3074.3,3073.1,14.44968247]
[1767366921010,9.11215234,3074.3,3073.2,9.41910693]
[1767366921387,0.852,3074.2,3073.2,9.41910693]
[1767366921588,8.26015234,3074.3,3073.2,9.41910693]
[1767366921904,0.852,3074.2,3073.2,9.41910693]
[1767366922086,9.11215234,3074.2,3073.2,9.41910693]
[1767366922294,9.11215234,3074.2,3073.3,0.78212966]
[1767366922491,8.26215234,3074.6,3073.3,8.72372585]
[1767366922714,0.854,3074.6,3073.3,8.72372585]
[1767366923120,0.002,3074.6,3073.5,7.94159619]
[1767366923326,0.002,3074.6,3073.4,9.76117653]
[1767366923327,0.002,3074.6,3073.7,7.94159619]
[1767366923684,0.002,3074.6,3073.6,1.77027727]
[1767366923685,8.26215234,3074.6,3073.6,1.77027727]
[1767366923885,8.26215234,3074.6,3073.5,7.94159619]
[1767366925195,8.26215234,3074.6,3073.6,3.25351379]
[1767366925619,0.852,3074.5,3073.6,3.25351379]
[1767366925808,8.26015234,3074.4,3073.5,3.25358309]
[1767366926031,0.852,3074.5,3072.5,3.25458047]
[1767366926032,7.88873731,3074.2,3072.5,3.25458047]
[1767366926324,7.88873731,3074.0,3072.9,3.25418828]
[1767366926504,3.2544556,3074.6,3072.4,11.23533491]
[1767366926505,8.02655415,3073.8,3072.6,3.25455435]
[1767366926826,8.02655415,3073.6,3072.3,3.25486445]
[1767366927015,8.02655415,3073.6,3072.5,3.25464904]
[1767366927320,8.02655415,3073.6,3072.1,3.25507536]
[1767366927321,8.02655415,3074.1,3072.7,7.9918658]
[1767366927539,8.02655415,3074.5,3072.7,7.9918658]
[1767366927687,8.02655415,3074.3,3072.7,7.9918658]
[1767366927887,8.02655415,3074.3,3072.9,7.99744634]
[1767366928623,8.87855415,3074.3,3072.9,7.99744634]
[1767366928803,8.02655415,3074.3,3072.9,7.99744634]
[1767366929132,5.72844362,3075.9,3072.8,0.88428658]
[1767366929133,0.852,3075.6,3073.4,5.71677346]
[1767366929424,0.002,3074.4,3073.5,7.92991665]
[1767366929624,0.002,3074.4,3073.5,4.676297]
[1767366930145,0.002,3074.4,3073.5,7.92991665]
[1767366930345,8.02655415,3075.4,3073.7,8.01149567]
[1767366931238,8.02655415,3075.4,3073.9,8.01672176]
[1767366931409,8.02655415,3075.4,3074.0,9.79438457]
[1767366933414,8.06720059,3075.3,3073.9,0.851]
[1767366933613,8.02655415,3075.3,3073.9,0.851]
[1767366933923,8.02655415,3075.3,3073.9,8.87801825]
[1767366934128,8.02655415,3074.7,3072.8,0.88428658]
[1767366934299,8.02655415,3074.5,3072.5,8.02701825]
[1767366934502,8.02655415,3074.5,3071.6,3.25556373]
[1767366934503,8.02655415,3074.2,3072.0,8.03312967]
[1767366934704,8.02655415,3074.0,3072.1,0.80331297]
[1767366935135,8.02655415,3074.0,3072.1,4.05841074]
[1767366935327,8.02655415,3073.8,3072.1,0.80331297]
[1767366936109,8.02655415,3073.8,3072.0,0.001]
[1767366937236,8.02655415,3073.6,3072.0,0.001]
[1767366937444,8.02655415,3073.4,3072.0,0.001]
[1767366938129,8.02655415,3073.4,3071.1,11.304295]
[1767366938444,8.02655415,3073.4,3071.1,8.04816302]
[1767366938622,8.02655415,3073.2,3071.2,0.8049163]
[1767366938938,8.02655415,3073.0,3071.2,8.85789337]
[1767366939446,8.02655415,3072.8,3071.2,0.8049163]
[1767366939612,8.02655415,3072.7,3070.9,0.001]
[1767366939812,8.02655415,3072.5,3070.9,0.001]
[1767366940013,8.02655415,3072.3,3070.9,0.001]
[1767366940443,8.02655415,3072.3,3070.9,3.25735062]
[1767366940606,8.02655415,3072.3,3070.9,0.001]
[1767366941014,6.50850986,3072.9,3070.9,0.001]
[1767366941015,8.02655415,3072.1,3070.9,0.001]
[1767366941244,8.91440957,3072.1,3070.9,0.001]
[1767366942143,8.02655415,3072.0,3070.9,0.001]
[1767366943350,0.852,3071.9,3070.9,0.001]
[1767366943550,8.87855415,3071.9,3070.9,0.001]
[1767366944114,8.02655415,3071.7,3070.9,0.001]
[1767366944310,8.02655415,3071.7,3070.8,0.001]
[1767366945857,8.02655415,3071.7,3070.7,0.001]
[1767366945858,8.02655415,3071.6,3070.7,0.001]
[1767366946369,8.02655415,3071.6,3070.5,0.001]
[1767366946654,8.02655415,3071.6,3070.4,0.001]
[1767366946840,8.02655415,3071.4,3070.4,0.001]
[1767366947019,8.02655415,3071.2,3070.4,0.001]
[1767366947227,0.852,3071.3,3070.4,0.001]
[1767366947430,8.87855415,3071.3,3070.4,0.001]
[1767366948178,0.852,3071.2,3070.4,0.001]
[1767366948458,8.02655415,3071.1,3070.4,0.001]
[1767366948637,8.02655415,3072.2,3070.4,8.1057134]
[1767366948841,8.02655415,3071.6,3070.4,0.001]
[1767366949028,8.02655415,3071.4,3070.4,0.001]
[1767366949645,8.87855415,3071.4,3070.4,8.11000151]
[1767366949846,8.87855415,3071.4,3070.4,0.001]
[1767366950055,8.02655415,3071.2,3070.4,0.001]
[1767366950540,8.02655415,3071.6,3070.4,8.11428537]
[1767366950741,8.02655415,3071.4,3070.4,0.001]
[1767366951965,8.06725352,3071.3,3070.4,0.001]
[1767366952267,8.02655415,3071.1,3070.4,0.001]
[1767366952467,1.45790035,3071.2,3070.4,0.001]
[1767366952468,8.87855415,3071.0,3070.4,0.001]
[1767366953841,8.02655415,3071.0,3070.4,0.001]
[1767366954835,0.852,3071.1,3070.4,8.13099012]
[1767366955030,8.02655415,3071.5,3070.4,8.13099012]
[1767366955257,8.02655415,3071.5,3070.5,8.09619709]
[1767366955441,8.02655415,3071.5,3070.4,0.001]
[1767366956053,7.78083715,3071.3,3070.4,0.001]
[1767366956570,7.78083715,3071.1,3070.4,0.001]
[1767366956945,7.78083715,3071.1,3070.0,0.83871]
[1767366957246,8.63283715,3071.1,3069.8,3.25849219]
[1767366957570,9.41092087,3071.1,3069.9,0.32594922]
[1767366957779,7.78083715,3072.2,3070.2,7.29768628]
[1767366957942,7.78083715,3071.8,3070.4,7.29868628]
[1767366958269,8.63383715,3072.2,3070.5,7.30049764]
[1767366958455,7.78083715,3072.2,3070.5,7.30049764]
[1767366958636,7.78083715,3072.2,3070.7,7.30049764]
[1767366958839,7.78083715,3072.2,3070.9,7.30049764]
[1767366959642,7.78083715,3072.2,3070.7,0.852]
[1767366959978,7.78083715,3072.0,3070.7,8.1573358]
[1767366960277,7.78083715,3072.0,3070.7,0.852]
[1767366960472,7.78083715,3071.8,3070.7,4.1085819]
[1767366960784,7.78083715,3072.5,3070.8,8.16204054]
[1767366961071,8.81047081,3073.5,3070.6,0.852]
[1767366961072,7.78083715,3072.3,3070.6,0.852]
[1767366961277,7.78083715,3072.1,3070.6,1.99397927]
[1767366961479,7.78083715,3071.9,3070.7,10.57127546]
[1767366961654,7.78083715,3071.9,3070.7,7.31470114]
[1767366961973,7.78083715,3071.9,3070.6,1.99397927]
[1767366962274,7.78083715,3071.9,3070.4,0.001]
[1767366962275,7.78083715,3071.7,3070.4,0.001]
[1767366962574,7.78083715,3071.5,3070.4,0.001]
[1767366963648,7.78083715,3071.5,3070.5,3.25676121]
[1767366963850,7.78083715,3071.5,3070.6,10.58053748]
[1767366964049,7.78083715,3071.5,3070.6,7.32391163]
[1767366964256,7.78083715,3071.5,3070.4,0.001]
[1767366964455,7.78083715,3071.5,3070.4,3.25786955]
[1767366964656,7.78083715,3071.5,3070.5,3.58257951]
[1767366964977,7.78083715,3071.3,3070.4,0.001]
[1767366965547,7.78083715,3072.1,3070.7,7.33280224]
[1767366965744,7.78083715,3072.1,3070.9,7.33280224]
[1767366965978,7.78083715,3072.1,3070.8,0.852]
[1767366965979,7.78083715,3072.1,3071.1,7.33080224]
[1767366966150,7.78083715,3072.1,3071.0,6.51253662]
[1767366966151,7.78083715,3072.7,3071.3,7.33080224]
[1767366966357,0.002,3072.8,3071.5,7.3351545]
[1767366966652,7.78283715,3072.8,3071.5,7.3351545]
[1767366966972,7.78283715,3072.8,3071.6,0.852]
[1767366967160,7.78083715,3072.6,3071.2,1.38433389]
[1767366967372,7.78083715,3072.6,3071.4,0.852]
[1767366967745,7.78083715,3072.6,3071.5,7.33948459]
[1767366968142,7.78083715,3072.6,3071.0,7.33948459]
[1767366968346,7.78083715,3072.6,3071.5,7.34378602]
[1767366968667,7.78083715,3072.6,3071.5,10.59952189]
[1767366968979,7.78083715,3072.6,3071.6,1.05995219]
[1767366969579,7.78083715,3072.6,3071.7,8.20000596]
[1767366970249,7.78083715,3072.5,3071.8,0.852]
[1767366970894,7.78083715,3072.5,3071.6,0.852]
[1767366971463,7.78083715,3072.5,3071.6,1.26277021]
[1767366971675,7.78083715,3072.5,3071.6,0.852]
[1767366971863,0.002,3072.8,3071.8,7.35638166]
[1767366972374,0.002,3072.8,3072.0,7.36051974]
[1767366972577,0.002,3072.8,3072.1,8.21051974]
[1767366972981,7.78283715,3072.8,3071.7,7.35851974]
[1767366973193,7.78283715,3072.8,3071.5,0.001]
[1767366973194,7.78083715,3072.6,3071.5,0.001]
[1767366973985,0.002,3072.8,3071.7,3.25543311]
[1767366974191,7.78283715,3072.8,3071.9,7.36264529]
[1767366974484,7.78283715,3072.8,3072.0,0.852]
[1767366974852,7.78283715,3072.8,3071.6,3.25560161]
[1767366975047,7.78283715,3072.8,3071.5,3.25671509]
[1767366975048,7.78283715,3072.8,3071.7,4.75874702]
[1767366975253,7.78283715,3072.8,3071.7,1.50323167]
[1767366975474,7.78283715,3072.8,3071.7,0.852]
[1767366975677,7.78283715,3072.8,3071.7,4.10746633]
[1767366975879,7.78283715,3072.8,3071.7,0.852]
[1767366976486,7.78083715,3072.6,3071.5,0.853]
[1767366976686,7.78083715,3072.4,3071.5,0.001]
[1767366976863,7.78083715,3072.2,3071.5,0.001]
[1767366978119,7.78083715,3072.6,3071.5,3.25668633]
[1767366978465,7.78083715,3072.6,3071.7,7.37352955]
[1767366978590,7.78083715,3072.6,3071.8,1.91491133]
[1767366979519,0.002,3072.8,3071.9,7.37301117]
[1767366980408,7.78083715,3072.7,3071.8,1.06291133]
[1767366980590,7.78083715,3072.5,3071.5,0.001]
[1767366981098,0.852,3072.6,3071.2,0.852]
[1767366981099,7.78083715,3072.3,3071.2,0.852]
[1767366981299,8.55892087,3072.3,3071.5,0.001]
[1767366981983,8.55892087,3072.3,3071.2,0.852]
[1767366982394,7.78083715,3072.3,3071.2,4.10804363]
[1767366982592,7.78083715,3072.3,3071.2,0.852]
[1767366982815,7.78083715,3072.3,3070.8,7.37358182]
[1767366982816,7.78083715,3072.2,3070.8,7.37358182]
[1767366983127,7.78083715,3072.0,3070.6,0.852]
[1767366983538,7.78283715,3072.6,3071.4,12.6905256]
[1767366983842,7.78283715,3072.6,3071.5,0.852]
[1767366985019,7.78283715,3072.6,3071.4,7.372686]
[1767366985221,7.78283715,3072.6,3071.5,8.224686]
[1767366985419,7.78283715,3072.6,3071.6,0.8224686]
[1767366985627,7.78283715,3072.6,3071.6,8.19482591]
[1767366986716,7.59148715,3072.6,3071.6,8.19482591]
[1767366987014,8.30009324,3072.4,3071.5,0.852]
[1767366988009,8.30009324,3072.4,3071.5,4.10767693]
[1767366988395,8.30009324,3072.4,3071.5,8.41213555]